bitfinex/quotes_ETHUSD_20240707
["timestamp","ask_amount","ask_price","bid_price","bid_amount"]
[1720359048969,3.534,2986.5,2985.2,3.9041]
[1720359049177,4.22241589,2986.5,2985.2,3.9041]
[1720359049318,3.534,2986.3,2985.2,3.9041]
[1720359049519,6.534,2986.4,2985.2,3.9041]
[1720359049723,7.22241589,2986.4,2985.2,3.9041]
[1720359049952,5.79029429,2986.3,2985.2,3.9041]
[1720359050155,3.94185574,2986.3,2985.2,3.9041]
[1720359050453,3.534,2986.3,2985.2,3.9041]
[1720359050656,3.0,2986.3,2985.2,3.9041]
[1720359050875,0.68841589,2986.5,2985.2,3.9041]
[1720359051088,3.0,2986.4,2985.2,3.9041]
[1720359051385,0.68841589,2986.5,2985.2,3.9041]
[1720359051386,3.0,2986.5,2985.2,3.9041]
[1720359051677,6.534,2986.5,2985.2,4.529009]
[1720359052667,1.15988001,2986.4,2985.2,4.529009]
[1720359052870,7.22241589,2986.5,2985.2,4.529009]
[1720359053057,1.15994711,2986.4,2985.2,4.529009]
[1720359053262,7.22241589,2986.5,2985.2,4.529009]
[1720359053476,6.534,2986.5,2985.2,4.529009]
[1720359053978,3.0,2986.5,2985.2,4.529009]
[1720359054179,3.0,2986.5,2985.2,4.59599606]
[1720359054354,3.0,2986.5,2985.3,0.45959961]
[1720359054760,1.15990606,2986.4,2985.3,0.45959961]
[1720359055069,3.0,2986.5,2985.3,0.45959961]
[1720359055664,6.534,2986.6,2985.3,0.45959961]
[1720359055895,4.03262384,2986.8,2985.3,0.45959961]
[1720359055896,7.22241589,2986.8,2985.3,2.87140828]
[1720359056104,1.15978923,2986.7,2985.4,0.67755083]
[1720359056259,6.534,2986.8,2985.5,0.06698195]
[1720359056689,6.534,2986.8,2985.4,0.67755083]
[1720359057019,6.534,2986.8,2985.4,3.08926276]
[1720359057431,3.0,2986.8,2985.5,2.34466]
[1720359057724,6.534,2986.9,2985.6,0.30891928]
[1720359058015,3.0,2986.9,2985.6,0.37590113]
[1720359058179,7.41,2987.2,2986.0,2.34427]
[1720359058509,10.944,2987.6,2986.2,4.0101]
[1720359058671,1.15948291,2987.5,2986.2,4.0101]
[1720359058867,10.944,2987.6,2986.3,0.066967]
[1720359059207,3.534,2987.1,2986.2,4.0101]
[1720359059608,3.534,2987.1,2985.0,4.0101]
[1720359059609,3.534,2986.4,2985.0,4.0101]
[1720359059770,3.534,2986.4,2985.0,6.35514]
[1720359060179,6.534,2986.1,2985.0,4.0101]
[1720359061371,3.0,2986.1,2985.0,4.0101]
[1720359062093,6.534,2986.1,2985.0,4.0101]
[1720359062524,3.68767972,2986.3,2984.3,2.34557]
[1720359062525,6.534,2985.7,2984.3,4.0101]
[1720359064788,3.0,2985.0,2984.3,4.0101]
[1720359065033,3.0,2985.0,2983.8,4.0101]
[1720359065214,3.0,2984.9,2983.8,4.0101]
[1720359065417,3.0,2984.5,2983.2,4.0101]
[1720359065612,3.534,2984.7,2983.2,4.0101]
[1720359065804,3.0,2984.5,2983.2,4.0101]
[1720359066008,3.0,2984.5,2983.3,0.635658]
[1720359066816,3.534,2984.7,2983.3,0.635658]
[1720359067124,3.68767972,2984.8,2983.3,3.635658]
[1720359067329,11.09767972,2984.9,2983.4,0.06703278]
[1720359067623,10.41,2984.9,2983.9,6.35601]
[1720359067938,3.0,2984.9,2984.0,0.93721242]
[1720359068236,3.68767972,2985.3,2984.0,0.93721242]
[1720359068561,13.944,2985.4,2984.2,2.34563]
[1720359068562,7.41,2985.4,2984.2,2.34563]
[1720359068700,7.41,2985.4,2984.3,2.34559]
[1720359068905,7.41,2985.4,2984.4,0.469122]
[1720359069102,7.41,2985.4,2984.1,2.3457]
[1720359069308,7.41,2985.4,2984.0,0.870196]
[1720359069607,0.68850818,2985.3,2984.0,3.215976]
[1720359069804,8.09850818,2985.4,2984.0,3.215976]
[1720359070113,7.41,2985.4,2984.3,2.34553]
[1720359070313,7.41,2985.4,2984.8,3.8414]
[1720359070529,0.68850818,2985.9,2984.9,0.06699922]
[1720359070733,7.41,2986.1,2984.9,0.06699417]
[1720359071046,19.82,2986.5,2985.2,6.18625]
[1720359071418,19.82,2986.5,2985.2,3.8414]
[1720359071635,6.534,2986.3,2985.2,3.8414]
[1720359071804,4.22317554,2986.1,2985.2,3.8414]
[1720359072011,4.22317554,2986.1,2984.6,3.8414]
[1720359072012,0.68917554,2986.0,2984.6,3.8414]
[1720359072202,0.68917554,2986.2,2984.9,2.34508]
[1720359072441,0.68917554,2986.4,2985.2,2.34489]
[1720359072640,3.68917554,2986.4,2985.3,0.234489]
[1720359073067,6.534,2986.4,2985.3,0.234489]
[1720359073275,6.534,2986.1,2984.6,3.8414]
[1720359073453,0.68917554,2986.0,2984.7,3.0]
[1720359073643,7.22317554,2986.1,2984.7,3.0]
[1720359073838,7.22317554,2986.1,2984.8,0.91867]
[1720359074175,3.0,2986.1,2984.8,0.91867]
[1720359074540,3.0,2986.1,2984.8,3.26383]
[1720359074843,7.22317554,2986.1,2984.8,0.91867]
[1720359075175,0.68917554,2985.9,2984.8,0.91867]
[1720359075375,0.68917554,2985.9,2984.9,0.391867]
[1720359075541,0.68917554,2985.9,2984.6,3.8414]
[1720359075877,4.22317554,2985.6,2984.6,3.8414]
[1720359076036,0.68917554,2985.5,2984.6,3.8414]
[1720359076236,3.68917554,2985.5,2984.6,3.8414]
[1720359076980,0.68917554,2985.4,2984.6,3.8414]
[1720359077190,3.68917554,2985.5,2984.6,3.8414]
[1720359077369,3.0,2985.4,2984.6,3.8414]
[1720359077550,3.0,2985.4,2983.9,3.0]
[1720359077551,6.534,2985.1,2983.9,3.8414]
[1720359077753,7.22317554,2985.1,2983.9,3.8414]
[1720359077966,3.68917554,2985.1,2983.9,3.8414]
[1720359078146,3.68917554,2985.1,2984.0,0.38414]
[1720359078147,0.68917554,2985.1,2984.0,0.38414]
[1720359078347,0.68917554,2985.2,2984.0,0.38414]
[1720359078567,3.68917554,2985.3,2984.0,0.38414]
[1720359078770,3.0,2985.1,2984.0,0.38414]
[1720359078970,3.68917554,2985.1,2984.0,0.38414]
[1720359079761,3.0,2984.8,2983.9,3.8414]
[1720359080476,7.22317554,2984.8,2983.9,3.8414]
[1720359080645,0.68917554,2984.7,2983.9,3.8414]
[1720359080844,7.22317554,2984.8,2983.9,3.8414]
[1720359081091,3.0,2984.5,2983.1,3.8796]
[1720359081248,3.0,2984.5,2983.2,0.622619]
[1720359081686,3.68863814,2984.5,2983.2,0.622619]
[1720359081982,3.68863814,2984.7,2983.2,0.622619]
[1720359082146,0.68863814,2984.6,2983.2,0.622619]
[1720359082353,0.68863814,2984.6,2983.3,0.06702771]
[1720359082564,3.68863814,2984.7,2983.4,0.30361067]
[1720359082763,3.0,2984.7,2983.6,6.22575]
[1720359083555,7.41,2984.8,2983.7,2.41308976]
[1720359083750,3.68795328,2985.1,2983.8,2.34599]
[1720359083954,3.0,2985.1,2984.0,3.8796]
[1720359084188,3.0,2985.2,2984.1,2.34574]
[1720359084491,7.41,2985.3,2984.3,6.22519]
[1720359084660,13.09795328,2985.7,2984.4,0.06700695]
[1720359084859,0.68795328,2985.7,2984.4,0.06700695]
[1720359085194,7.41,2985.8,2984.5,0.62921969]
[1720359085405,7.41,2985.8,2984.6,0.06700399]
[1720359085557,3.0,2985.7,2984.5,0.69622368]
[1720359086696,3.0,2985.7,2984.4,2.34552]
[1720359086697,6.534,2985.4,2984.3,3.8796]
[1720359086859,3.68777471,2985.4,2984.3,3.8796]
[1720359087059,6.68777471,2985.7,2984.3,3.8796]
[1720359087498,3.0,2985.4,2984.3,3.8796]
[1720359087785,3.0,2985.0,2984.3,3.8796]
[1720359088198,3.0,2985.0,2983.8,3.8796]
[1720359088199,3.68777471,2985.0,2983.8,3.8796]
[1720359088487,3.0,2984.7,2983.8,3.8796]
[1720359088707,3.68777471,2985.0,2983.8,3.8796]
[1720359089219,3.0,2985.0,2983.8,3.8796]
[1720359089424,0.68777471,2985.2,2983.9,0.45497922]
[1720359089721,11.09777471,2985.3,2984.0,2.34579]
[1720359089925,10.41,2985.3,2984.1,0.34708639]
[1720359090449,3.0,2985.2,2983.9,0.38796]
[1720359090989,3.0,2984.9,2983.9,0.38796]
[1720359091187,3.0,2984.6,2983.8,3.8796]
[1720359092190,3.0,2984.6,2983.4,4.18321067]
[1720359092399,3.68787165,2984.6,2983.4,4.18321067]
[1720359092729,3.0,2984.6,2983.4,4.18321067]
[1720359092933,4.22187165,2984.7,2983.5,0.06703007]
[1720359092934,0.68787165,2984.7,2983.5,0.06703007]
[1720359093232,3.0,2984.7,2983.6,0.42502407]
[1720359093549,3.0,2984.9,2983.8,3.8796]
[1720359093843,3.68787165,2985.2,2983.8,3.8796]
[1720359094142,8.09787165,2985.3,2983.9,2.4128772]
[1720359094353,7.41,2985.3,2984.1,3.8796]
[1720359094514,7.41,2985.3,2984.2,0.06700998]
[1720359095095,6.91,2985.3,2984.2,0.06700998]
[1720359095735,3.0,2985.2,2984.2,0.06700998]
[1720359096029,3.0,2985.2,2984.3,0.394661]
[1720359096537,3.0,2985.2,2984.1,3.8796]
[1720359096725,3.0,2985.1,2984.1,3.8796]
[1720359097120,3.68787165,2985.2,2984.1,3.8796]
[1720359097320,3.0,2985.1,2984.1,3.8796]
[1720359098636,3.68787165,2985.1,2984.1,3.8796]
[1720359098821,3.534,2984.7,2983.3,3.6506]
[1720359099433,3.68712199,2984.8,2983.5,5.99676]
[1720359099434,0.68712199,2984.8,2983.5,5.99676]
[1720359099635,3.68712199,2985.0,2983.6,2.41317151]
[1720359099834,3.68712199,2985.0,2983.6,2.34615]
[1720359100038,3.68712199,2985.0,2982.7,2.34684]
[1720359100039,3.68712199,2985.0,2983.7,0.599675]
[1720359100345,6.68712199,2985.2,2983.8,5.99652]
[1720359100634,3.0,2984.9,2983.8,3.6506]
[1720359100811,0.68712199,2985.0,2983.8,3.6506]
[1720359101019,6.68712199,2985.2,2983.8,3.6506]
[1720359101224,0.68712199,2985.1,2983.8,3.6506]
[1720359101417,0.68712199,2985.1,2983.9,0.599665]
[1720359102029,0.68712199,2985.1,2983.8,3.6506]
[1720359102030,3.0,2984.9,2983.8,3.6506]
[1720359102226,3.68712199,2984.9,2983.8,3.6506]
[1720359102443,1.84765083,2984.8,2983.8,3.6506]
[1720359102629,0.68712199,2984.8,2983.8,3.6506]
[1720359102805,7.22112199,2984.9,2983.8,3.6506]
[1720359103243,1.84763353,2984.8,2983.8,3.6506]
[1720359103422,3.0,2984.9,2983.8,3.6506]
[1720359103741,0.68712199,2985.1,2983.8,5.99659]
[1720359103928,1.84754129,2985.0,2983.8,5.99659]
[1720359104129,0.68712199,2985.0,2983.9,0.599659]
[1720359104740,3.55327578,2984.9,2983.9,0.599659]
[1720359104942,1.70580494,2984.8,2983.9,0.599659]
[1720359105449,0.68816722,2984.7,2983.8,3.6506]
[1720359105614,1.70586462,2984.6,2983.8,3.6506]
[1720359105808,0.68816722,2984.8,2983.8,6.06355829]
[1720359106041,3.68816722,2985.0,2983.9,2.34586]
[1720359106246,1.70575646,2984.9,2983.8,3.6506]
[1720359106417,0.68816722,2984.8,2983.8,4.250274]
[1720359107242,1.70570938,2984.7,2983.9,2.34589]
[1720359107447,0.68816722,2984.9,2983.9,2.34589]
[1720359108023,1.70570582,2984.8,2983.8,4.250274]
[1720359108331,0.68816722,2984.7,2983.8,3.6506]
[1720359108535,1.70570582,2984.6,2983.8,3.6506]
[1720359108745,2.39387304,2984.6,2983.8,3.6506]
[1720359108934,0.68816722,2984.6,2983.8,3.6506]
[1720359109820,0.68816722,2984.4,2983.4,3.6506]
[1720359110021,2.39405759,2984.3,2983.5,0.36506]
[1720359110254,1.70607988,2984.2,2983.5,0.36506]
[1720359110570,0.68816722,2984.4,2983.5,0.36506]
[1720359110731,1.70602865,2984.3,2983.5,0.36506]
[1720359111418,0.68816722,2984.4,2983.6,0.401566]
[1720359111621,1.70602531,2984.3,2983.6,0.401566]
[1720359112253,3.0,2984.6,2983.6,0.401566]
[1720359112254,0.68893695,2984.4,2983.6,0.401566]
[1720359112452,2.39498226,2984.3,2983.6,0.401566]
[1720359112656,0.68893695,2984.3,2983.6,0.401566]
[1720359112859,0.68893695,2984.4,2983.6,0.401566]
[1720359113234,1.70600498,2984.3,2983.6,0.401566]
[1720359113561,2.39494193,2984.3,2983.6,0.401566]
[1720359113729,0.68893695,2984.4,2983.4,3.6506]
[1720359113932,1.70603415,2984.3,2983.4,3.6506]
[1720359114137,0.68893695,2984.1,2983.4,3.6506]
[1720359114660,1.70616025,2984.0,2983.4,3.6506]
[1720359115156,2.39478986,2984.0,2983.4,3.6506]
[1720359115462,0.68862961,2984.1,2983.4,3.6506]
[1720359115632,1.70625552,2984.0,2983.4,3.6506]
[1720359116219,0.68862961,2984.1,2983.4,3.6506]
[1720359117866,2.39488819,2984.0,2983.4,3.6506]
[1720359118174,0.68858161,2984.3,2983.5,0.06703126]
[1720359118323,0.68858161,2984.4,2983.6,0.37176313]
[1720359118668,0.68858161,2984.5,2983.7,0.06702445]
[1720359118875,0.68858161,2984.5,2983.6,0.37176313]
[1720359119225,1.7059481,2984.4,2983.6,0.37176313]
[1720359119421,2.39452971,2984.4,2983.7,0.27179631]
[1720359119645,0.68858161,2984.4,2983.7,0.27179631]
[1720359120054,0.68858161,2984.4,2983.8,0.06702253]
[1720359120254,0.68858161,2984.5,2983.8,0.06702253]
[1720359120527,0.68858161,2984.4,2984.0,3.8386]
[1720359120763,0.68858161,2984.4,2984.0,3.9056191]
[1720359120924,0.68858161,2984.8,2984.1,0.0670191]
[1720359121266,0.68858161,2984.8,2984.1,2.4127791]
[1720359121419,0.68858161,2984.9,2984.2,0.62513791]
[1720359121619,2.39420138,2984.8,2984.2,0.62513791]
[1720359121872,0.68858161,2984.9,2984.3,0.06701106]
[1720359122070,0.68858161,2985.0,2984.2,2.97081791]
[1720359122468,1.70555694,2984.9,2984.2,0.62513791]
[1720359122682,1.70555694,2984.9,2984.3,0.29708979]
[1720359122974,1.70555694,2984.9,2984.2,0.62513791]
[1720359123540,1.70555694,2984.8,2984.2,0.62513791]
[1720359123859,2.39485729,2984.8,2984.2,0.62513791]
[1720359124037,0.68930035,2984.8,2984.2,0.62513791]
[1720359124373,1.70569466,2984.7,2984.2,0.62513791]
[1720359124675,1.70569466,2984.7,2983.7,2.34604]
[1720359124676,0.68930035,2984.5,2983.5,3.8386]
[1720359124831,0.68930035,2984.3,2983.5,3.8386]
[1720359125025,2.39528496,2984.2,2983.5,3.8386]
[1720359125224,0.68930035,2984.2,2983.5,3.8386]
[1720359125535,1.7060824,2984.1,2983.6,0.38386]
[1720359126465,0.68930035,2984.3,2983.6,0.38386]
[1720359126770,0.68930035,2984.4,2983.6,0.38386]
[1720359126972,0.68930035,2984.5,2983.7,2.41308907]
[1720359127126,0.68930035,2984.6,2983.7,2.41308907]
[1720359127332,1.70582432,2984.5,2983.8,0.51430391]
[1720359127529,0.68930035,2984.6,2983.9,3.90561776]
[1720359127839,1.70580439,2984.5,2983.9,3.8386]
[1720359128451,2.39510474,2984.5,2983.9,3.8386]
[1720359128647,0.68930035,2984.6,2983.9,3.8386]
[1720359128861,1.70580947,2984.5,2984.0,0.44199217]
[1720359129267,1.3786007,2984.9,2984.5,2.34543]
[1720359129268,0.68930035,2984.9,2984.5,2.34543]
[1720359129453,0.68930035,2984.9,2984.7,3.8386]
[1720359129776,3.68930035,2985.3,2984.1,3.8386]
[1720359129996,0.68930035,2985.0,2984.1,3.8386]
[1720359130188,0.68930035,2984.9,2984.1,3.8386]
[1720359130675,0.68930035,2985.0,2984.1,3.8386]
[1720359130874,1.70563953,2984.9,2984.1,3.8386]
[1720359131082,0.68930035,2985.1,2984.1,3.8386]
[1720359131284,0.68930035,2985.2,2984.2,0.49506506]
[1720359131465,0.68930035,2985.3,2984.6,6.18392]
[1720359131649,0.68930035,2985.5,2984.6,6.18392]
[1720359131848,1.70532999,2985.4,2984.6,6.18392]
[1720359132055,2.39463034,2985.4,2984.6,6.18392]
[1720359132261,1.70532999,2985.3,2984.6,6.18392]
[1720359132461,0.68930035,2985.5,2984.9,2.34513]
[1720359132654,1.70529543,2985.4,2984.9,2.34513]
[1720359132855,7.59930035,2985.7,2984.9,2.34513]
[1720359133051,1.7052765,2985.6,2984.9,2.34513]
[1720359133304,6.91,2985.7,2984.9,2.4121239]
[1720359133489,6.91,2985.7,2985.0,0.24121239]
[1720359133662,0.68930035,2985.6,2984.6,3.8386]
[1720359133858,0.68930035,2985.4,2984.6,3.8386]
[1720359134063,0.68930035,2985.6,2984.7,2.34527]
[1720359134361,7.59930035,2985.7,2984.7,2.34527]
[1720359134558,1.70528766,2985.6,2984.7,2.34527]
[1720359134775,7.59930035,2985.7,2984.8,0.618387]
[1720359134979,0.68930035,2985.8,2984.9,3.90559638]
[1720359135177,4.3786007,2986.1,2985.3,3.8386]
[1720359135178,0.68930035,2986.1,2985.3,3.8386]
[1720359135390,0.68930035,2986.3,2985.3,6.25038604]
[1720359135691,0.6891504,2986.5,2985.4,2.34473]
[1720359135893,1.70493527,2986.4,2985.5,0.6250316]
[1720359136194,1.70493527,2986.4,2985.7,2.3445]
[1720359136492,6.91,2986.7,2985.7,2.3445]
[1720359136654,0.68908887,2986.9,2985.7,2.3445]
[1720359136859,1.70474557,2986.8,2985.6,2.34451]
[1720359137219,1.70474557,2986.8,2985.6,2.41148966]
[1720359137543,3.0,2986.9,2985.7,2.34447]
[1720359137663,0.68908887,2987.1,2985.8,6.24997619]
[1720359137995,1.7046357,2987.0,2985.8,6.24997619]
[1720359138172,11.13308887,2987.2,2985.8,6.24997619]
[1720359138372,11.13308887,2987.2,2985.9,0.62499762]
[1720359138569,10.444,2987.2,2985.9,0.62499762]
[1720359138881,11.13177662,2987.2,2985.9,0.62499762]
[1720359139078,6.91,2987.2,2986.0,0.06697329]
[1720359139394,6.91,2987.2,2986.0,2.41122329]
[1720359139563,6.91,2987.2,2986.1,0.30362209]
[1720359140291,6.91,2987.2,2986.3,3.8668]
[1720359140494,3.534,2987.6,2986.3,6.21082]
[1720359141273,3.534,2987.6,2986.3,6.27778582]
[1720359142893,3.534,2987.6,2986.3,6.21082]
[1720359143258,9.91,2987.7,2986.3,8.62174381]
[1720359143493,13.444,2987.7,2986.4,2.34394]
[1720359143679,13.444,2987.7,2986.3,3.8668]
[1720359143911,13.444,2987.7,2986.3,6.21083]
[1720359144402,13.444,2987.7,2986.4,2.34394]
[1720359144599,10.444,2987.7,2986.5,0.855477]
[1720359144804,13.444,2987.7,2986.5,0.855477]
[1720359145103,13.444,2987.7,2986.3,6.21083]
[1720359146227,6.91,2987.7,2986.5,2.34387]
[1720359147429,6.91,2987.7,2986.6,0.06695961]
[1720359147614,6.91,2987.7,2986.8,2.34363]
[1720359147796,6.91,2987.7,2986.8,0.06695334]
[1720359148323,9.91,2988.2,2986.3,3.8668]
[1720359148534,9.91,2988.2,2986.5,3.8668]
[1720359148730,9.91,2988.2,2987.2,3.8668]
[1720359148912,3.0,2988.2,2987.2,3.8668]
[1720359149117,3.0,2988.5,2987.3,0.621015]
[1720359149497,19.32,2988.6,2987.4,0.06693739]
[1720359149692,6.91,2988.6,2987.4,2.34317]
[1720359150030,6.91,2988.6,2987.7,3.8668]
[1720359150422,6.91,2989.1,2987.7,3.8668]
[1720359150595,6.86,2989.1,2988.0,2.34268]
[1720359151291,6.86,2989.5,2988.1,3.8668]
[1720359151693,6.86,2989.5,2988.1,6.20936]
[1720359152128,6.86,2989.5,2988.3,2.34239]
[1720359152353,6.86,2989.5,2988.4,2.34232]
[1720359152493,6.86,2989.5,2988.5,2.576512]
[1720359152699,6.86,2989.5,2988.6,3.8668]
[1720359153419,6.86,2989.5,2988.6,6.20902]
[1720359153796,6.86,2989.5,2988.6,3.8668]
[1720359154236,9.86,2989.5,2988.3,3.0]
[1720359154396,3.0,2989.2,2988.2,3.8668]
[1720359154820,9.86,2989.5,2988.2,3.8668]
[1720359155045,6.534,2989.2,2987.8,3.38668]
[1720359155205,6.534,2989.2,2987.8,0.38668]
[1720359155538,6.534,2988.9,2987.6,3.8668]
[1720359155704,10.7501,2989.4,2987.7,0.06693492]
[1720359155897,3.0,2989.4,2987.9,2.34275]
[1720359156207,3.0,2989.4,2987.6,3.8668]
[1720359156208,3.0,2989.3,2987.8,6.2096]
[1720359156424,3.0,2989.3,2987.8,3.8668]
[1720359156608,0.55,2989.2,2987.9,0.38668]
[1720359156815,3.0,2989.3,2987.9,0.38668]
[1720359157020,3.0,2989.3,2987.9,3.38668]
[1720359157220,3.0,2989.0,2987.8,3.8668]
[1720359157540,0.55,2988.9,2987.4,3.0]
[1720359157735,3.6661,2989.1,2987.4,5.34315]
[1720359157736,3.0,2989.1,2987.4,5.34315]
[1720359158038,3.0,2989.1,2987.8,2.34285]
[1720359158233,3.0,2989.2,2987.9,3.6634]
[1720359158455,3.0,2989.4,2987.9,3.6634]
[1720359158456,6.0,2989.4,2988.0,0.600621]
[1720359158657,3.0,2988.8,2987.9,3.6634]
[1720359158817,3.0,2988.8,2987.4,9.00657]
[1720359159018,3.0,2989.4,2987.4,3.6634]
[1720359159019,3.0,2988.5,2987.4,3.6634]
[1720359159430,7.4844,2988.7,2987.4,3.6634]
[1720359159741,7.4844,2988.7,2987.5,0.36634]
[1720359159967,3.0,2988.8,2987.5,0.36634]
[1720359160253,3.0,2989.0,2987.5,0.43327676]
[1720359160449,3.0,2989.0,2987.7,2.34293]
[1720359161023,3.0,2988.8,2987.5,0.36634]
[1720359161222,3.0,2988.5,2987.4,3.6634]
[1720359161622,3.0,2988.2,2986.9,3.6634]
[1720359162451,17.3444,2988.5,2986.9,3.6634]
[1720359162612,6.534,2988.4,2986.9,6.00694]
[1720359162804,6.534,2988.4,2986.9,3.6634]
[1720359162805,3.0,2988.4,2986.9,3.6634]
[1720359163011,3.0,2988.4,2987.2,2.34326]
[1720359163262,3.0,2988.4,2987.0,0.36634]
[1720359163406,3.0,2988.2,2987.0,0.36634]
[1720359164245,3.0,2988.2,2986.9,3.6634]
[1720359164646,3.0,2987.9,2987.0,3.0]
[1720359166446,3.0,2987.9,2986.9,3.6634]
[1720359167342,3.0,2988.2,2987.0,2.34348]
[1720359167544,3.0,2988.2,2987.1,0.600688]
[1720359168538,6.534,2988.2,2986.9,3.6634]
[1720359169067,9.86,2988.5,2987.0,0.0669525]
[1720359169212,3.0,2988.4,2987.0,0.0669525]
[1720359169747,6.0,2988.4,2987.1,2.34336]
[1720359170048,6.0,2988.4,2987.2,2.34331]
[1720359170262,3.0,2988.4,2987.3,2.811907]
[1720359170760,6.86,2988.5,2987.7,2.34287]
[1720359170962,6.86,2989.0,2987.7,2.34287]
[1720359171258,6.86,2989.0,2987.5,5.34303]
[1720359171460,6.86,2989.0,2987.5,3.0]
[1720359171761,1.15894674,2988.9,2987.6,0.66634]
[1720359171926,6.86,2989.0,2987.6,0.66634]
[1720359172131,6.86,2989.0,2987.6,3.0093]
[1720359172862,3.0,2988.8,2987.6,0.66634]
[1720359173034,10.4844,2988.8,2987.6,0.66634]
[1720359173229,1.15902813,2988.7,2987.6,0.66634]
[1720359173437,10.4844,2988.8,2987.6,0.66634]
[1720359173761,1.15904671,2988.7,2987.6,0.66634]
[1720359173950,3.0,2988.5,2987.6,0.66634]
[1720359174349,3.0,2988.5,2987.4,3.6634]
[1720359174759,4.084,2988.4,2987.3,0.468667]
[1720359175754,3.0,2988.2,2987.1,3.6634]
[1720359177720,3.0,2988.2,2986.7,2.34365]
[1720359177721,3.534,2988.1,2986.7,3.6634]
[1720359177853,3.534,2988.1,2986.8,3.0]
[1720359178053,3.534,2988.1,2986.9,0.66634]
[1720359178250,0.55,2988.4,2987.0,0.06695357]
[1720359178501,3.534,2988.1,2986.9,0.66634]
[1720359178993,3.0,2987.9,2986.9,0.66634]
[1720359180668,3.0,2987.6,2986.7,3.6634]
[1720359181696,3.534,2987.9,2986.7,3.6634]
[1720359181868,3.534,2987.7,2986.7,3.6634]
[1720359182885,3.534,2987.9,2986.7,3.6634]
[1720359183083,3.534,2987.7,2986.7,4.02974]
[1720359183397,6.534,2987.7,2986.7,3.6634]
[1720359183602,3.0,2987.0,2985.1,2.34495]
[1720359183762,3.534,2986.9,2985.1,2.34495]
[1720359183958,3.534,2986.9,2985.2,0.611695]
[1720359183959,3.534,2986.7,2985.2,0.611695]
[1720359184161,3.0,2986.4,2985.2,0.611695]
[1720359185002,6.534,2986.4,2985.2,0.611695]
[1720359185211,6.534,2985.9,2984.4,3.772]
[1720359185381,6.534,2985.9,2984.4,6.11751]
[1720359185967,6.534,2985.9,2984.4,3.772]
[1720359186395,6.534,2985.9,2984.4,6.11752]
[1720359186572,6.534,2985.9,2984.5,3.846312]
[1720359188814,3.0,2985.3,2983.9,6.11789]
[1720359189109,3.0,2985.3,2984.0,3.0]
[1720359189279,3.0,2985.3,2984.0,5.34582]
[1720359189997,3.0,2985.3,2984.0,5.34584]
[1720359192275,6.86,2985.5,2984.1,2.41276321]
[1720359192479,6.86,2985.5,2984.4,2.3455]
[1720359192680,6.86,2985.5,2984.5,0.06700375]
[1720359192900,3.534,2985.8,2984.5,0.06700375]
[1720359193185,3.0,2985.7,2984.5,0.06700375]
[1720359193495,3.0,2985.8,2984.6,0.24125038]
[1720359193679,3.0,2985.6,2984.6,0.24125038]
[1720359193878,3.0,2985.6,2984.2,0.54127632]
[1720359194116,3.0,2985.3,2984.2,0.54127632]
[1720359195694,3.0,2985.3,2984.1,0.06701312]
[1720359196218,3.0,2985.3,2984.1,2.41276312]
[1720359196388,3.534,2985.7,2984.1,2.41276312]
[1720359196389,3.0,2985.6,2984.2,2.34566]
[1720359196725,3.0,2985.5,2984.1,2.34575]
[1720359197246,3.0,2985.5,2984.1,2.3457]
[1720359197518,6.86,2985.9,2984.7,2.34527]
[1720359197678,6.86,2985.9,2984.8,0.06699737]
[1720359197879,6.86,2985.9,2984.3,2.34555]
[1720359198123,3.0,2985.7,2984.3,3.0]
[1720359198321,3.534,2985.6,2984.4,0.700657]
[1720359198523,3.0,2985.3,2984.2,4.00657]
[1720359198883,3.0,2985.3,2983.8,2.34599]
[1720359198884,3.0,2985.0,2983.8,3.6845]
[1720359199321,6.86,2985.3,2984.0,2.34584]
[1720359199482,6.86,2985.3,2983.9,0.06701939]
[1720359199820,10.394,2985.3,2983.9,0.0670176]
[1720359199986,6.86,2985.3,2984.0,2.34581]
[1720359200187,6.86,2985.3,2984.1,0.30829721]
[1720359200409,6.86,2985.3,2984.1,0.24128276]
[1720359200608,6.86,2985.3,2983.8,6.03044]
[1720359200806,6.86,2985.3,2984.0,2.34583]
[1720359201016,6.86,2985.3,2984.1,0.06701445]
[1720359202001,3.0,2985.2,2983.8,6.03043]
[1720359202225,3.0,2985.2,2983.9,0.603043]
[1720359202741,3.0,2985.2,2983.9,3.01597059]
[1720359202939,6.86,2985.3,2984.0,2.34583]
[1720359203091,6.86,2985.3,2984.1,0.06701444]
[1720359204511,6.36,2985.3,2984.1,0.06701444]
[1720359204697,6.36,2985.3,2984.2,0.24127944]
[1720359205099,3.0,2985.1,2983.9,0.603043]
[1720359207021,6.534,2985.1,2983.9,0.603043]
[1720359207630,6.36,2985.3,2984.2,2.34568]
[1720359207846,3.0,2985.2,2984.3,0.06701006]
[1720359208013,6.36,2985.3,2984.3,0.06701006]
[1720359208207,16.1483,2985.6,2984.5,6.02988]
[1720359208208,12.41,2985.6,2984.5,6.02988]
[1720359208413,6.36,2985.7,2984.7,2.34524]
[1720359209558,6.36,2986.1,2984.8,0.06699902]
[1720359209850,6.36,2986.1,2985.3,6.02924]
[1720359210145,6.36,2986.6,2985.5,2.34465]
[1720359210333,6.36,2986.6,2985.3,3.6845]
[1720359210850,6.36,2986.6,2985.4,2.34469]
[1720359211019,6.36,2986.6,2985.5,2.41163239]
[1720359211445,6.36,2986.6,2985.6,0.24116324]